[Event "SVK ECo-C Extraliga 2021-22"]
[Site "Slovakia"]
[Date "2022.06.10"]
[Round "9.11"]
[White "Roubalik, Jakub"]
[Black "Jurcik Marian"]
[Result "1/2-1/2"]
[ECO "E94"]
[WhiteElo "2384"]
[BlackElo "2407"]
[Annotator "TA"]
[PlyCount "34"]
[EventDate "2021.10.21"]
[EventType "team-tourn"]
[EventCountry "SVK"]
[SourceTitle "playchess.com"]
[Source "ChessBase"]
[SourceQuality "1"]
[TimeControl "40/5400+30:1800+30"]

{[%evp 21,34,35,35,21,25,14,27,21,22,-16,-10,-20,0,0,0]} 1. d4 {[%emt 0:00:07]} d6 {[%emt 0:00:23]} 2. c4 {[%emt 0:00:30]} e5 {[%emt 0:00:17]} 3. Nf3 {[%emt 0:00:37]} Nd7 {[%emt 0:01:46]} 4. Nc3 {[%emt 0:00:10]} g6 {[%emt 0:01:26]} 5. e4 {[%emt 0:01:05]} Bg7 {[%emt 0:00:57]} 6. d5 {[%emt 0:01:36]} Ngf6 {[%emt 0:02:03]} 7. Be2 {[%emt 0:01:25]} O-O {[%emt 0:02:05]} 8. O-O {[%emt 0:01:18]} Nc5 {[%emt 0:00:07]} 9. Qc2 {[%emt 0:08:46]} a5 {[%emt 0:00:09]} 10. Be3 {[%emt 0:08:34]} Ng4 {[%emt 0:00:35]} 11. Bxc5 {[%emt 0:01:28]} dxc5 {[%emt 0:01:09]} 12. Rad1 {[%emt 0:00:16] E94: King's Indian: Classical: 6 Be2 e5 7 0-0: Various Black 7th moves.} Qe7 {[%emt 0:08:14] [#]} 13. Nb5 $146 {[%emt 0:02:57]} ({Predecessor:} 13. Qd3 Ra6 14. Ne1 Nf6 15. Qe3 Ne8 16. Nd3 b6 17. Nb5 Nd6 18. Nxc5 bxc5 19. Qxc5 Qg5 {0-1 (30) Duessel,U (2283)-Cherniaev,A (2484) Zuerich 2007}) 13... Rd8 {[%emt 0:05:24]} 14. Nd2 {[%emt 0:06:15][%cal Bf3d2,Bd2b1,Bb1c3][%mdl 32]} Nf6 {[%emt 0:01:41] The position is equal.} 15. d6 {[%emt 0:03:02]} cxd6 {[%emt 0:01:18]} 16. Nb1 {[%emt 0:00:04]} b6 {[%emt 0:10:55]} 17. N1c3 {[%emt 0:00:51]} Bb7 {[%emt 0:00:42] A rather calm draw.  Weighted Error Value: White=0.11 (very precise) /Black=0.07 (flawless)} 1/2-1/2

[Event "SVK ECo-C Extraliga 2021-22"]
[Site "Slovakia"]
[Date "2022.06.10"]
[Round "9.12"]
[White "Jurcik Martin"]
[Black "Motuz Karol"]
[Result "1-0"]
[ECO "C47"]
[WhiteElo "2391"]
[BlackElo "2297"]
[Annotator "TA"]
[PlyCount "74"]
[EventDate "2021.10.21"]
[EventType "team-tourn"]
[EventCountry "SVK"]
[SourceTitle "playchess.com"]
[Source "ChessBase"]
[SourceQuality "1"]
[TimeControl "40/5400+30:1800+30"]

{[%evp 22,74,8,15,29,18,25,22,18,28,16,13,14,14,42,36,54,53,56,50,50,31,89,89,89,89,107,107,107,107,112,112,112,112,112,112,149,149,186,186,186,181,206,204,202,201,193,185,291,298,306,310,399,391,430]} 1. e4 {[%emt 0:00:15]} e5 {[%emt 0:00:14]} 2. Nf3 {[%emt 0:00:21]} Nc6 {[%emt 0:00:08]} 3. Nc3 {[%emt 0:00:23]} Nf6 {[%emt 0:00:19]} 4. d4 {[%emt 0:00:34]} exd4 {[%emt 0:00:44]} 5. Nxd4 {[%emt 0:00:12]} Bb4 {[%emt 0:00:21]} 6. Nxc6 {[%emt 0:00:39]} bxc6 {[%emt 0:00:46]} 7. Bd3 {[%emt 0:00:23]} d5 {[%emt 0:00:39]} 8. exd5 {[%emt 0:00:29]} cxd5 {[%emt 0:00:05]} 9. O-O {[%emt 0:00:22]} O-O {[%emt 0:00:04]} 10. Bg5 {[%emt 0:00:29]} c6 {[%emt 0:00:07]} 11. Qf3 {[%emt 0:00:35]} Bd6 {[%emt 0:01:53]} 12. Rae1 {[%emt 0:01:27]} h6 {[%emt 0:02:05] C47: Scotch Four Knights and Four Knights with 4 g3.} 13. Bxf6 {[%emt 0:02:13]} Qxf6 {[%emt 0:00:13]} 14. Qxf6 {[%emt 0:00:09]} gxf6 {[%emt 0:00:01] The position is equal.} 15. Ne2 {[%emt 0:03:12] 15.Nd1 gains popularity.} c5 {[%emt 0:17:51] [#] White must now prevent ...c4.} 16. Ng3 {[%emt 0:11:51]} Rb8 {[%emt 0:07:03]} 17. b3 {[%emt 0:01:47] Against c4} Be6 {[%emt 0:12:14]} 18. Nf5 {[%emt 0:01:55]} Bxf5 {[%emt 0:02:10]} 19. Bxf5 {[%emt 0:00:12]} Rfe8 {[%emt 0:00:45]} 20. Rd1 {[%emt 0:17:58]} Rbd8 {[%emt 0:05:37] [#]} 21. Rd3 $146 {[%emt 0:06:27]} ({Predecessor:} 21. g3 Bc7 22. Bg4 {½-½ (21) Wang,C (2485)-Hansen,S (2561) Pattaya 2013}) 21... d4 {[%emt 0:07:34]} (21... c4 $14 22. Rc3 Re5) 22. Rh3 $16 {[%emt 0:00:54] White stays focused until the end.} Kg7 {[%emt 0:00:55]} 23. Bd3 {[%emt 0:00:58]} Re7 {[%emt 0:03:52]} 24. f4 {[%emt 0:03:11]} Re3 {[%emt 0:13:33]} 25. Rh5 {[%emt 0:02:54]} a5 {[%emt 0:06:27]} 26. a4 {[%emt 0:01:08]} Be7 {[%emt 0:02:06]} 27. Kf2 {[%emt 0:03:23]} Bd6 {[%emt 0:01:15]} 28. g3 {[%emt 0:00:33]} Be7 {[%emt 0:00:24]} 29. Re1 {[%emt 0:02:07]} Rxe1 {[%emt 0:01:08]} 30. Kxe1 {[%emt 0:00:04][%mdl 4096] Endgame KRB-KRB} Bf8 {[%emt 0:07:41]} 31. Ke2 {[%emt 0:07:47]} Kg8 {[%emt 0:01:12]} 32. Be4 {[%emt 0:02:35]} Kg7 {[%emt 0:03:00]} 33. Kd3 {[%emt 0:00:46]} Be7 {[%emt 0:00:42]} 34. Rd5 {[%emt 0:08:17]} Rb8 {[%emt 0:03:49]} (34... Rxd5 {was worth a try.} 35. Bxd5 h5) 35. Rd7 $18 {[%emt 0:00:49]} Kf8 {[%emt 0:00:26]} 36. Ra7 {[%emt 0:00:33]} f5 {[%emt 0:00:34]} 37. Bd5 {[%emt 0:00:53]} h5 {[%emt 0:00:00] Weighted Error Value: White=0.01 (flawless) /Black=0.19 (very precise)} 1-0

[Event "SVK ECo-C Extraliga 2021-22"]
[Site "Slovakia"]
[Date "2022.06.10"]
[Round "9.13"]
[White "Vojtek Vladimir"]
[Black "Zvarik Martin"]
[Result "1-0"]
[ECO "C77"]
[WhiteElo "2297"]
[BlackElo "2228"]
[Annotator "TA"]
[PlyCount "51"]
[EventDate "2021.10.21"]
[EventType "team-tourn"]
[EventCountry "SVK"]
[SourceTitle "playchess.com"]
[Source "ChessBase"]
[SourceQuality "1"]
[TimeControl "40/5400+30:1800+30"]

{[%evp 12,51,18,12,42,-14,0,0,9,9,0,0,11,10,24,24,23,0,4,5,116,1,35,5,63,52,52,50,57,74,85,86,97,57,122,114,302,177,560,561,604,593]} 1. e4 {[%emt 0:00:12]} e5 {[%emt 0:00:20]} 2. Nf3 {[%emt 0:00:05]} Nc6 {[%emt 0:00:09]} 3. Bb5 {[%emt 0:00:05][%cal Bf1b5,Bb5a4,Ba4b3][%mdl 32]} a6 {[%emt 0:00:15]} 4. Ba4 {[%emt 0:00:05]} Nf6 {[%emt 0:00:14]} 5. Nc3 {[%emt 0:02:21]} Bc5 {[%emt 0:00:28]} 6. O-O {[%emt 0:00:29]} b5 {[%emt 0:00:23]} 7. Bb3 {[%emt 0:00:07]} d6 {[%emt 0:00:43] C77: Ruy Lopez: 3...a6 4 Ba4 Nf6, unusual lines.} 8. h3 {[%emt 0:03:43] Inhibits Bg4.} (8. Nd5 $14) 8... h6 {[%emt 0:14:02] [#]} 9. Ne2 $146 {[%emt 0:18:19]} ({Predecessor:} 9. d3 Na5 10. Ne2 O-O 11. Ng3 Bb6 12. c3 Nxb3 13. axb3 Re8 14. Be3 Rb8 15. Qd2 {1-0 (25) Stefansson,H (2518)-Braeuer,F (2435) Marianske Lazne 2022}) 9... Na5 {[%emt 0:04:49] The position is equal.} 10. Ng3 {[%emt 0:02:28]} Nxb3 {[%emt 0:10:57]} 11. axb3 {[%emt 0:00:04]} Bb6 {[%emt 0:01:39]} 12. d4 {[%emt 0:08:14]} exd4 {[%emt 0:15:16]} 13. Nxd4 {[%emt 0:00:55]} O-O {[%emt 0:00:37]} 14. Qd3 {[%emt 0:12:19]} Re8 {[%emt 0:16:46]} 15. Nxb5 {[%emt 0:13:42]} Nd7 {[%emt 0:10:30]} (15... Bxh3 $11 16. Nxc7 Bxc7 17. gxh3 Qd7) 16. Qc3 {[%emt 0:15:15]} ({White should try} 16. Nc3 $16) 16... Nc5 {[%emt 0:09:26]} 17. Be3 {[%emt 0:06:13]} (17. Nh5 Re5 18. Ng3 Bb7 $15) (17. Bxh6 $2 gxh6 18. Qf3 (18. Nh5 $2 Re5 $19) 18... Bb7 $19) 17... Bd7 {[%emt 0:03:41]} ({Don't take} 17... Nxe4 18. Nxe4 Rxe4 19. Bxb6 (19. Qc6 Bf5 $14) 19... cxb6 20. Rfd1 $16 (20. Qc6 Bf5 $14)) ({Black should play} 17... Bb7 $11 18. Bxc5 Bxc5) 18. Bxc5 $14 {[%emt 0:03:28] White is more active.} Bxc5 {[%emt 0:01:20]} 19. Nd4 {[%emt 0:01:53]} Qg5 {[%emt 0:01:10]} 20. Kh2 $40 {[%emt 0:03:37][%mdl 128] White has strong attack.} Qf4 {[%emt 0:02:59]} 21. Nde2 {[%emt 0:00:53]} Qh4 {[%emt 0:00:58]} 22. Qf3 {[%emt 0:01:21]} Re5 {[%emt 0:00:51]} ({Better is} 22... Bc6 $14) 23. Nf4 $16 {[%emt 0:01:48]} Rg5 $2 {[%emt 0:00:46] [#]} (23... Bb5 $16) 24. Nd3 {[%emt 0:02:05]} (24. Nf5 $142 Rxf5 25. exf5) 24... Bg4 $2 {[%emt 0:03:28]} (24... Bc6 {is tougher.} 25. Rfd1 (25. Nxc5 Rxc5 26. b4 Rc4 $16) 25... a5) 25. Qf4 $18 {[%emt 0:00:13]} Bd4 {[%emt 0:00:23]} 26. Nf5 {[%emt 0:01:43] Weighted Error Value: White=0.29 (precise) /Black=0.57} 1-0

[Event "SVK ECo-C Extraliga 2021-22"]
[Site "Slovakia"]
[Date "2022.06.10"]
[Round "9.14"]
[White "Straka Jozef"]
[Black "Zpevak, Pavel"]
[Result "1-0"]
[ECO "E56"]
[WhiteElo "2319"]
[BlackElo "2357"]
[Annotator "TA"]
[PlyCount "195"]
[EventDate "2021.10.21"]
[EventType "team-tourn"]
[EventCountry "SVK"]
[SourceTitle "playchess.com"]
[Source "ChessBase"]
[SourceQuality "1"]
[TimeControl "40/5400+30:1800+30"]

{[%evp 21,195,20,44,36,42,27,14,0,34,16,23,29,28,21,21,17,22,9,20,18,13,8,3,2,4,4,8,0,3,0,0,0,0,0,8,8,0,0,0,0,0,0,8,0,8,0,8,8,8,0,0,0,8,8,29944,29944,29948,29949,29952,29953,29954,29955,29955,29956,29957,29958,29960,29960,29963,29965,29964,29965,29962,29963,29962,29964,29965,29964,29965,29968,29969,29970,29974,29974,29974,29971,29973,29975,29975,29974,29975,29974,29975,29976,29977,29978,29978,29979,29979,29980,29980,29978,29980,29979,29980,29980,29980,29981,29981,29980,29982,29981,29980,29981,29982,29975,29983,29984,29984,29985,29985,29985,29985,29986,29986,29987,29987,29987,29988,29986,29986,29987,29987,29988,29989,4145,29988,29988,29988,4145,29989,0,29989,0,29989,29990,29990,29990,29991,29992,29992,4145,29991,29991,29991,29990,29992,29992,29993,29994,29994,29994,29995,29996,29996,29995,29997,4149,29996,29996,29996,29997,29997,29998,29998,29999]} 1. d4 {[%emt 0:00:08]} Nf6 {[%emt 0:00:16]} 2. c4 {[%emt 0:00:04]} e6 {[%emt 0:00:15]} 3. Nc3 {[%emt 0:00:08]} Bb4 {[%emt 0:00:48]} 4. e3 {[%emt 0:00:10]} O-O {[%emt 0:01:05]} 5. Bd3 {[%emt 0:00:06]} d5 {[%emt 0:00:37]} 6. Nf3 {[%emt 0:00:12]} c5 {[%emt 0:04:02]} 7. O-O {[%emt 0:04:01]} Nc6 {[%emt 0:05:47]} 8. a3 {[%emt 0:00:31]} Ba5 {[%emt 0:02:02]} 9. cxd5 {[%emt 0:05:07]} exd5 {[%emt 0:01:27]} 10. dxc5 {[%emt 0:11:16]} Bxc3 {[%emt 0:02:36]} 11. bxc3 {[%emt 0:01:22]} Qa5 {[%emt 0:01:34]} 12. Qc2 {[%emt 0:03:50] E56: Nimzo-Indian: Rubinstein: Main Line: 7...Nc6.} Qxc5 {[%emt 0:01:42]} 13. c4 {[%emt 0:07:11]} dxc4 {[%emt 0:11:33] [#]} 14. Bb2 $146 {[%emt 0:04:37] The position is equal.} ({Predecessor:} 14. Qxc4 Qxc4 15. Bxc4 Bg4 16. Bb2 Rac8 17. Rac1 Na5 18. Bd3 Nb3 19. Rxc8 Rxc8 20. Nd4 {0-1 (72) Bunk,W (1984)-Hofstetter,H (2163) Bad Kissingen 2018}) 14... Rd8 {[%emt 0:02:58]} 15. Qxc4 {[%emt 0:16:46]} Qxc4 {[%emt 0:21:46]} 16. Bxc4 {[%emt 0:00:03] A strong pair of Bishops.} Be6 {[%emt 0:01:14]} 17. Bxe6 {[%emt 0:04:41]} fxe6 {[%emt 0:00:25]} 18. Ng5 {[%emt 0:00:39]} e5 {[%emt 0:00:47]} 19. Rfd1 {[%emt 0:04:15]} Rxd1+ {[%emt 0:09:27]} 20. Rxd1 {[%emt 0:00:03]} Re8 {[%emt 0:00:31]} 21. h3 {[%emt 0:07:30]} h6 {[%emt 0:06:40]} 22. Nf3 {[%emt 0:00:14]} Kf7 {[%emt 0:00:58]} 23. g4 {[%emt 0:10:30]} Ke6 {[%emt 0:06:00]} 24. Nh4 {[%emt 0:02:06] White wants to play Nf5.} Rd8 {[%emt 0:02:30]} 25. Rxd8 {[%emt 0:02:12]} Nxd8 $11 {[%emt 0:00:07][%mdl 4096] Endgame KBN-KNN} 26. Nf5 {[%emt 0:00:08]} Ne8 {[%emt 0:00:30]} 27. f4 {[%emt 0:00:36]} Nf7 {[%emt 0:02:23]} 28. Kf2 {[%emt 0:01:56]} h5 {[%emt 0:02:46]} 29. Ng3 {[%emt 0:07:44]} hxg4 {[%emt 0:02:10]} 30. hxg4 {[%emt 0:00:03]} exf4 {[%emt 0:04:13]} 31. exf4 {[%emt 0:00:15]} Kd5 {[%emt 0:00:26]} 32. Kf3 {[%emt 0:05:55]} g5 {[%emt 0:02:58]} 33. Nh5 {[%emt 0:01:06]} gxf4 {[%emt 0:01:50]} 34. Kxf4 {[%emt 0:00:28]} a5 {[%emt 0:00:53]} 35. g5 {[%emt 0:00:25]} Nxg5 {[%emt 0:00:14]} 36. Kxg5 {[%emt 0:00:04]} Kc4 {[%emt 0:00:17]} 37. Be5 {[%emt 0:01:47] White threatens Kf5 and mate.} Kb3 $2 {[%emt 0:00:02][%mdl 8192] [#] Black is now going downhill.} (37... b5 $11) 38. Kg6 {[%emt 0:00:25]} Kxa3 {[%emt 0:00:22]} 39. Kf7 {[%emt 0:00:02]} b5 {[%emt 0:00:23]} 40. Kxe8 {[%emt 0:01:08]} b4 {[%emt 0:00:05]} 41. Nf4 {[%emt 0:07:02]} Kb3 {[%emt 0:15:23]} 42. Kd7 {[%emt 0:18:00]} Kc2 {[%emt 0:04:58]} 43. Nd5 {[%emt 0:02:53]} b3 {[%emt 0:09:02]} 44. Ne3+ {[%emt 0:00:18]} Kb1 {[%emt 0:05:20]} 45. Nc4 {[%emt 0:00:15]} a4 {[%emt 0:00:13]} 46. Kc6 {[%emt 0:01:23]} Kc2 {[%emt 0:01:15]} 47. Bb2 {[%emt 0:00:25]} Kd3 {[%emt 0:00:20]} 48. Kb5 {[%emt 0:00:07]} Ke4 {[%emt 0:00:13]} 49. Kxa4 {[%emt 0:00:09]} Kd5 {[%emt 0:00:06]} 50. Kxb3 {[%emt 0:00:47]} Ke4 {[%emt 0:00:07]} 51. Kc3 {[%emt 0:00:48]} Kd5 {[%emt 0:00:21]} 52. Kd3 {[%emt 0:00:17]} Kc5 {[%emt 0:00:16]} 53. Ne3 {[%emt 0:01:29]} Kb5 {[%emt 0:00:13]} 54. Kd4 {[%emt 0:00:18]} Kc6 {[%emt 0:00:11]} 55. Ba3 {[%emt 0:00:55]} Kb5 {[%emt 0:00:11]} 56. Bc5 {[%emt 0:00:47]} Kc6 {[%emt 0:00:07]} 57. Nc4 {[%emt 0:01:39]} Kc7 {[%emt 0:00:18]} 58. Kd5 {[%emt 0:00:38]} Kb7 {[%emt 0:00:11]} 59. Bd6 {[%emt 0:00:53]} Ka7 {[%emt 0:00:11]} 60. Kc6 {[%emt 0:00:35]} Ka8 {[%emt 0:00:08]} 61. Bc5 {[%emt 0:00:42]} Kb8 {[%emt 0:00:05]} 62. Be3 {[%emt 0:00:35]} Ka8 {[%emt 0:00:09]} 63. Nb6+ {[%emt 0:00:33]} Kb8 {[%emt 0:00:12]} 64. Bf4+ {[%emt 0:00:19]} Ka7 {[%emt 0:00:08]} 65. Be5 {[%emt 0:00:28]} Ka6 {[%emt 0:00:10]} 66. Bd6 {[%emt 0:00:45]} Ka7 {[%emt 0:00:06]} 67. Bc7 {[%emt 0:00:12]} Ka6 {[%emt 0:00:08]} 68. Bb8 {[%emt 0:00:15]} Ka5 {[%emt 0:00:04]} 69. Nd5 {[%emt 0:00:50]} Ka4 {[%emt 0:00:23]} 70. Kc5 {[%emt 0:00:21]} Kb3 {[%emt 0:00:17]} 71. Bg3 {[%emt 0:00:44]} Kc2 {[%emt 0:00:16]} 72. Kd4 {[%emt 0:00:29]} Kd2 {[%emt 0:00:21]} 73. Nf4 {[%emt 0:00:38]} Kc2 {[%emt 0:00:09]} 74. Kc4 {[%emt 0:00:17]} Kb2 {[%emt 0:00:36]} 75. Ne2 {[%emt 0:00:37]} Kc2 {[%emt 0:00:11]} 76. Nd4+ {[%emt 0:00:50]} Kd2 {[%emt 0:00:08]} 77. Bf2 {[%emt 0:00:21]} Kd1 {[%emt 0:00:18]} 78. Kc3 {[%emt 0:00:30]} Kc1 {[%emt 0:00:07]} 79. Bg3 {[%emt 0:00:30]} Kd1 {[%emt 0:00:10]} 80. Bh4 {[%emt 0:00:05]} Kc1 {[%emt 0:00:08]} 81. Bg3 {[%emt 0:00:05]} Kd1 {[%emt 0:00:10]} 82. Bh4 {[%emt 0:00:30]} Kc1 {[%emt 0:00:10]} 83. Nc2 {[%emt 0:00:03]} Kd1 {[%emt 0:00:12]} 84. Kd3 {[%emt 0:00:01]} Kc1 {[%emt 0:00:12]} 85. Bf6 {[%emt 0:00:21]} Kd1 {[%emt 0:00:10]} 86. Bc3 {[%emt 0:00:55]} Kc1 {[%emt 0:00:04]} 87. Bd4 {[%emt 0:01:17]} Kd1 {[%emt 0:00:12]} 88. Be5 {[%emt 0:00:04]} Kc1 {[%emt 0:00:06]} 89. Ne3 {[%emt 0:00:36]} Kb1 {[%emt 0:00:04]} 90. Kc3 {[%emt 0:00:09]} Kc1 {[%emt 0:00:10]} 91. Bf4 {[%emt 0:00:49]} Kb1 {[%emt 0:00:06]} 92. Nc4 {[%emt 0:00:51]} Ka2 {[%emt 0:00:09]} 93. Kc2 {[%emt 0:00:21]} Ka1 {[%emt 0:00:05]} 94. Be3 {[%emt 0:01:23]} Ka2 {[%emt 0:00:04]} 95. Bc1 {[%emt 0:00:17] White mates.} Ka1 {[%emt 0:00:06]} 96. Nd2 {[%emt 0:00:17]} Ka2 {[%emt 0:00:06]} 97. Ne4 {[%emt 0:00:10]} Ka1 {[%emt 0:00:51]} 98. Bb2+ {[%emt 0:00:02] Weighted Error Value: White=0.03 (flawless) /Black=0.23 (precise)} 1-0

[Event "SVK ECo-C Extraliga 2021-22"]
[Site "Slovakia"]
[Date "2022.06.10"]
[Round "9.15"]
[White "Rucek Kristian"]
[Black "Kopera Michal"]
[Result "1-0"]
[ECO "D37"]
[WhiteElo "2234"]
[BlackElo "2135"]
[Annotator "TA"]
[PlyCount "73"]
[EventDate "2021.10.21"]
[EventType "team-tourn"]
[EventCountry "SVK"]
[SourceTitle "playchess.com"]
[Source "ChessBase"]
[SourceQuality "1"]
[TimeControl "40/5400+30:1800+30"]

{[%evp 16,73,26,16,35,12,103,5,10,12,20,9,29,20,22,33,52,47,66,24,28,18,52,56,57,0,-8,0,-12,-21,-20,-20,-20,-21,0,-10,14,9,9,9,9,9,9,9,14,14,14,14,14,14,26,14,63,8,14,0,71,0,29988,29989]} 1. d4 {[%emt 0:00:14]} d5 {[%emt 0:00:17]} 2. c4 {[%emt 0:00:06]} e6 {[%emt 0:00:07]} 3. Nf3 {[%emt 0:00:04]} Nf6 {[%emt 0:00:11]} 4. Nc3 {[%emt 0:00:08]} Be7 {[%emt 0:01:44]} 5. Bf4 {[%emt 0:00:12]} O-O {[%emt 0:04:12]} 6. e3 {[%emt 0:01:41]} c5 {[%emt 0:06:23]} 7. dxc5 {[%emt 0:08:23]} Bxc5 {[%emt 0:03:41]} 8. a3 {[%emt 0:00:39]} Nc6 {[%emt 0:14:01][%cal Bb8c6,Bc6e5,Be5g6][%mdl 32]} 9. Qc2 {[%emt 0:07:44]} Bd6 {[%emt 0:08:56] D37: Queen's Gambit Declined: 5 Bf4.} 10. Bg5 {[%emt 0:03:07]} dxc4 {[%emt 0:03:54] [#]} (10... Be7 $11 {remains equal.}) 11. Bxc4 {[%emt 0:00:47]} ({White should play} 11. O-O-O $1 $16 {And now Ne4 would win.} Qe7 12. Ne4 (12. Bxc4 h6 $16)) 11... Ne5 $11 {[%emt 0:00:39] The position is equal.} 12. Be2 {[%emt 0:01:55]} h6 {[%emt 0:02:17]} 13. Bh4 {[%emt 0:02:37] [#]} Ng6 $146 {[%emt 0:05:06]} ({Predecessor:} 13... Bd7 14. Rd1 Qc7 15. Bxf6 gxf6 16. Qd2 Qb6 17. Qxd6 Qxb2 18. Qb4 Qxb4 19. axb4 Nxf3+ 20. gxf3 Bc6 21. e4 {1-0 (21) Amin,B (2505)-Kuzubov,Y (2559) Batumi 2006}) 14. Bxf6 {[%emt 0:10:17]} Qxf6 {[%emt 0:00:30]} 15. Ne4 {[%emt 0:00:46]} Qf5 {[%emt 0:05:18]} 16. O-O {[%emt 0:03:15] Strongly threatening Nd4.} Be7 $1 {[%emt 0:01:00]} 17. Nd4 {[%emt 0:11:36] White is more active.} (17. Rfd1 $5 {[%cal Ra1c1]}) 17... Qa5 {[%emt 0:02:20]} 18. Rac1 {[%emt 0:12:20]} e5 {[%emt 0:08:10]} 19. Nb3 {[%emt 0:04:10]} Qb6 {[%emt 0:00:31]} 20. Ned2 {[%emt 0:01:00]} (20. Nbc5 $14) 20... Be6 {[%emt 0:01:31]} 21. Nc4 {[%emt 0:04:43]} Qc7 {[%emt 0:05:08]} 22. Bd3 {[%emt 0:04:35]} Rac8 {[%emt 0:02:28][%cal Oe5e4]} 23. Qb1 {[%emt 0:08:36]} Rfd8 {[%emt 0:05:25][%cal Od8d3]} 24. Ncd2 {[%emt 0:03:28]} Qb6 {[%emt 0:01:04]} 25. Bxg6 {[%emt 0:02:41]} Bxb3 {[%emt 0:05:46] This bishop pair is nice.} 26. Bh7+ {[%emt 0:04:07]} Kf8 {[%emt 0:01:10] aiming for ...Rxc1.} 27. Rxc8 {[%emt 0:01:19]} Rxc8 {[%emt 0:00:01]} 28. Nxb3 {[%emt 0:01:25]} Qxb3 {[%emt 0:00:03]} 29. Bf5 {[%emt 0:01:02]} Rd8 {[%emt 0:01:36]} 30. Bc2 {[%emt 0:00:33]} Qb5 {[%emt 0:00:51]} 31. b4 {[%emt 0:00:51]} g6 {[%emt 0:03:14]} 32. g3 {[%emt 0:00:58]} Rd2 {[%emt 0:01:07]} 33. Qc1 {[%emt 0:00:50]} Qe2 {[%emt 0:01:17]} (33... Rd7 $11) 34. Bb3 {[%emt 0:00:13]} ({Better is} 34. Be4 $14) 34... Qd3 $1 {[%emt 0:02:06]} 35. Qc8+ {[%emt 0:00:23]} Kg7 {[%emt 0:01:17]} (35... Bd8 $1 $11 36. Qc1 (36. Bc4 Qc3 $15) 36... Kg7) 36. Bc4 {[%emt 0:00:24]} (36. Qxb7 $16 Qd7 37. Qa6) 36... Qxa3 $2 {[%emt 0:02:49][%mdl 8192] [#]} (36... Qd7 $11 37. Qb8 Bd6 38. Qxa7 Qc6) 37. Qe8 {[%emt 0:00:34] Weighted Error Value: White=0.18 (very precise) /Black=0.40} 1-0